{"text_format":"2","workbook":"xlsx","n_sheets":1,"sheets":["brownfield-sites 2022"],"not_rendered":{"charts":0,"images":0,"macros":0,"external_links":0,"defined_names":0,"comments":0,"pivot_tables":0},"unopened":[],"bounds":{"document_bytes":16777216,"sheet_cells":100000,"run_cost":"one","rows_first":2000,"rows_last":500,"rows_between":2000,"halvings":0,"cell_chars":16384,"cell_head_chars":4096},"cells_cut":0,"cells_raw":0,"read":"whole","date_system":"1900"}

{"sheet":"brownfield-sites 2022","index":0,"n_rows":28,"n_cols":22,"rows_kept":28,"cut":false,"hidden":false,"merged":[]}
["OrganisationURI","SiteReference","ref","SiteNameAddress","SiteplanURL","GeoY","GeoX","Hectares","OwnershipStatus","PlanningStatus","PermissionType","PermissionDate","PlanningHistory","Deliverable","NetDwellingsRangeFrom","NetDwellingsRangeTo","HazardousSubstances","Notes","FirstAddedDate","LastUpdatedDate","EndDate"]
["http://opendatacommu nities.org/id/districtcouncil/forest-of-dean",1,1,"High Street RFC Club Bream","https://maps.fdean.gov.uk/map/Aurora.svc/run?script=%5cAurora%5cFoDDC+-+SHLAA.AuroraScript%24&nocache=1347652503&resize=always&inspect_query=Brownfield_Land_Registery&inspect_value=Aurora1&scale=1024",205743.03,360199.84,0.93,"not owned by a public authority","permissioned ","full planning permission ","2014-10-06","https://publicaccess.fdean.gov.uk/online-applications/simpleSearchResults.do?action=firstPage","yes",8,25,null,"much of site now has full permission for redevelopment including eight new dwellings P1217/19/FUL","2017-10-31","2023-12-10",null,"Bream"]
["http://opendatacommu nities.org/id/districtcouncil/forest-of-dean",36,36,"Lansdown Walk Bream","https://maps.fdean.gov.uk/map/Aurora.svc/run?script=%5cAurora%5cFoDDC+-+SHLAA.AuroraScript%24&nocache=1347652503&resize=always&inspect_query=Brownfield_Land_Registery&inspect_value=Aurora28&scale=1024",205962.07,360625.33,0.19,"not owned by a public authority","not permissioned",{"$nulls":4},5,7,null,"alternative use of site currently occupied by business premises, no change","2017-10-31",{"$f":"T3:T19","v":"00:00:00"},null,"Bream"]
["http://opendatacommu nities.org/id/districtcouncil/forest-of-dean",4,4,"Newtown Road Cinderford","https://maps.fdean.gov.uk/map/Aurora.svc/run?script=%5cAurora%5cFoDDC+-+SHLAA.AuroraScript%24&nocache=1347652503&resize=always&inspect_query=Brownfield_Land_Registery&inspect_value=Aurora3&scale=1024",215625.79,364812.51,0.43,"owned by a public authority","not permissioned",null,null,"https://publicaccess.fdean.gov.uk/online-applications/simpleSearchResults.do?action=firstPage","yes",12,17,null,"Remains an allocation in the Area Action plan but now in ownership of local business and not Homes England.  Could be used for dwellings in accordance with allocation but unlikely.","2017-10-31",{"$f":"$T$2","v":"2023-12-10"},null,"Cinderford"]
[null,null,6,"Station Street Cinderford","https://maps.fdean.gov.uk/map/Aurora.svc/run?script=%5cAurora%5cFoDDC+-+SHLAA.AuroraScript%24&nocache=1347652503&resize=always&inspect_query=Brownfield_Land_Registery&inspect_value=Aurora4&scale=1024",213940.97,365182.92,3,"not owned by a public authority","not permissioned",{"$nulls":4},90,120,null,"largest element of site allocated in AP has had previous permissions but no longer current.  Suitable for a variety of housing and may be developed in conjunction with adjoining land to which it must relate. still suitable for residential use","2017-10-31","2023-12-10",null,"Cinderford"]
["http://opendatacommu nities.org/id/districtcouncil/forest-of-dean",7,7,"Adjacent to Cartway Green Valley Road Former Foundry Cinderford","https://maps.fdean.gov.uk/map/Aurora.svc/run?script=%5cAurora%5cFoDDC+-+SHLAA.AuroraScript%24&nocache=1347652503&resize=always&inspect_query=Brownfield_Land_Registery&inspect_value=Aurora5&scale=1024",213899.23,365079.07,0.97,"not owned by a public authority","not permissioned",null,null,null,"yes",30,40,null,"Part of larger allocated site Station Street- could be developed in conjunction with it or separately in a manner that would relate to its eventual development.  Site cleared. ","2017-10-31","2023-12-10",null,"Cinderford"]
["http://opendatacommu nities.org/id/districtcouncil/forest-of-dean",8,8,"Adjacent to Furnace Close Valley Road Junction Cinderford Valley Road","https://maps.fdean.gov.uk/map/Aurora.svc/run?script=%5cAurora%5cFoDDC+-+SHLAA.AuroraScript%24&nocache=1347652503&resize=always&inspect_query=Brownfield_Land_Registery&inspect_value=Aurora6&scale=1024",213860.46,365018.11,0.53,"not owned by a public authority","not permissioned",null,null,null,"yes",15,20,null,"A further parcel of land adjoins the former foundry site (listed elsewhere) and can be developed on its own or preferably in conjunction with it.  Not cleared but occupied by open storage and a single dwelling.","2017-10-31","2023-12-10",null,"Cinderford"]
["http://opendatacommu nities.org/id/districtcouncil/forest-of-dean",3,10,"Adjacent to Enterprise Centre Valley Road Former Employment Centre Cinderford","https://maps.fdean.gov.uk/map/Aurora.svc/run?script=%5cAurora%5cFoDDC+-+SHLAA.AuroraScript%24&nocache=1347652503&resize=always&inspect_query=Brownfield_Land_Registery&inspect_value=Aurora8&scale=1024",214436.52,365075.69,2.17,"not owned by a public authority","permissioned",null,null,"https://publicaccess.fdean.gov.uk/online-applications/applicationDetails.do?activeTab=documents&keyVal=Q9X15OHIHNP00",null,35,45,null,"Now part derelict. suitable for residential use has current planning outline permission (0577/20).  New GP unit recently completed on adjoining similar land.","2017-10-31","2023-12-10",null,"Cinderford"]
["http://opendatacommu nities.org/id/districtcouncil/forest-of-dean",50,50,"Foxes Bridge Rd Cinderford","https://maps.fdean.gov.uk/map/Aurora.svc/run?script=%5cAurora%5cFoDDC+-+SHLAA.AuroraScript%24&nocache=1347652503&resize=always&inspect_query=Brownfield_Land_Registery&inspect_value=Aurora38&scale=1024",214272.02,365084.68,0.71,"owned by a public authority","not permissioned",{"$nulls":4},17,21,null,"former training/ employment now demolished and suitable for redevelopment","2017-10-31","2023-12-10",null,"Cinderford"]
["http://opendatacommu nities.org/id/districtcouncil/forest-of-dean",13,13,"Newland Street Coleford","https://maps.fdean.gov.uk/map/Aurora.svc/run?script=%5cAurora%5cFoDDC+-+SHLAA.AuroraScript%24&nocache=1347652503&resize=always&inspect_query=Brownfield_Land_Registery&inspect_value=Aurora10&scale=512",210653.6,357442.68,0.02,"not owned by a public authority","permissioned","full planning permission ","2016-07-22","https://publicaccess.fdean.gov.uk/online-applications/search.do?action=simple&searchType=Application","yes",8,8,null,"permission for 8 new apartments but no movement since 2016 permission. Still suitable for residential use (P0285/16/FUL)","2017-10-31","2023-12-10",null,"Coleford"]
["http://opendatacommu nities.org/id/districtcouncil/forest-of-dean",44,44,"10-14 Newland Street Coleford","https://maps.fdean.gov.uk/map/Aurora.svc/run?script=%5cAurora%5cFoDDC+-+SHLAA.AuroraScript%24&nocache=1347652503&resize=always&inspect_query=Brownfield_Land_Registery&inspect_value=Aurora35&scale=1024",210682.09,357411.61,0.12,"not owned by a public authority","not permissioned",{"$nulls":4},6,10,null,"Site fronting Newland St suitable for conversion- and new build to rear. ","2017-10-31","2023-12-10",null,"Coleford"]
["http://opendatacommu nities.org/id/districtcouncil/forest-of-dean",17,17,"Drybrook Road Drybrook","https://maps.fdean.gov.uk/map/Aurora.svc/run?script=%5cAurora%5cFoDDC+-+SHLAA.AuroraScript%24&nocache=1347652503&resize=always&inspect_query=Brownfield_Land_Registery&inspect_value=Aurora11&scale=2048",216950.2,364457.1,0.79,"not owned by a public authority","permissioned","outline planning permission 15/07/15","28/06/2019 AND 12 September 2019","https://publicaccess.fdean.gov.uk/online-applications/applicationDetails.do?activeTab=documents&keyVal=REWYE1HII9N00","yes",7,12,null,"Parts of site have permission although there may be some limited additional potential but likely to be developed for up to seven dwellings.  Two dwellings complete in 2021. permission for 4 additional","2017-10-31","2023-12-10",null,"Drybrook"]
["http://opendatacommu nities.org/id/districtcouncil/forest-of-dean",18,18,"Adj Northumberland House Longhope","https://maps.fdean.gov.uk/map/Aurora.svc/run?script=%5cAurora%5cFoDDC+-+SHLAA.AuroraScript%24&nocache=1347652503&resize=always&inspect_query=Brownfield_Land_Registery&inspect_value=Aurora12&scale=1024",218921.99,368871.4,0.15,"not owned by a public authority","not permissioned",null,null,null,"yes",5,5,null,"small haulage depot in area of residential/ mixed development has potential for redevelopment- within Conservation Area. No additional permissions 2021 but suitable for housing development","2017-10-31","2023-12-10",null,"Longhope"]
["http://opendatacommu nities.org/id/districtcouncil/forest-of-dean",19,19,"Longhope Industrial Estate Longhope","https://maps.fdean.gov.uk/map/Aurora.svc/run?script=%5cAurora%5cFoDDC+-+SHLAA.AuroraScript%24&nocache=1347652503&resize=always&inspect_query=Brownfield_Land_Registery&inspect_value=Aurora13&scale=1024",219047.64,368731.65,0.66,"not owned by a public authority","not permissioned",{"$nulls":4},6,10,null,"mixed employment site allocated in plan to include a residential element. Remains suitable for some housing in future though not progressed.","2017-10-31","2023-12-10",null,"Longhope"]
["http://opendatacommu nities.org/id/districtcouncil/forest-of-dean",20,20,"Former Rothdean Main Road Lydbrook","https://maps.fdean.gov.uk/map/Aurora.svc/run?script=%5cAurora%5cFoDDC+-+SHLAA.AuroraScript%24&nocache=1347652503&resize=always&inspect_query=Brownfield_Land_Registery&inspect_value=Aurora14&scale=4096",216350.71,359715.08,1.58,"not owned by a public authority","not permissioned",null,null,"https://publicaccess.fdean.gov.uk/online-applications/applicationDetails.do?activeTab=documents&keyVal=OT36FTHIMT400","yes",30,45,null,"Includes area with current application for approval of reserved matters for 26 dwellings.  Adjoining land of same ownership/ character also included in register.","2017-10-31","2023-12-10",null,"Lydbrook"]
["http://opendatacommu nities.org/id/districtcouncil/forest-of-dean",22,22,"Former Temco Lydbrook","https://maps.fdean.gov.uk/map/Aurora.svc/run?script=%5cAurora%5cFoDDC+-+SHLAA.AuroraScript%24&nocache=1347652503&resize=always&inspect_query=Brownfield_Land_Registery&inspect_value=Aurora16&scale=1024",217427.57,358915.51,0.98,"not owned by a public authority","not permissioned",{"$nulls":4},10,10,null,"part of larger allocated area identified for mixed use separated by road and suitable for development for housing which could be carried out independently of remainder of allocation. Now partially demolished. Allocated in Allocations Plan.","2017-10-31","2023-12-10",null,"Lydbrook"]
["http://opendatacommu nities.org/id/districtcouncil/forest-of-dean",24,24,"Pine End Works Harbour Road Lydney","https://maps.fdean.gov.uk/map/Aurora.svc/run?script=%5cAurora%5cFoDDC+-+SHLAA.AuroraScript%24&nocache=1347652503&resize=always&inspect_query=Brownfield_Land_Registery&inspect_value=Aurora17&scale=2048",201406.71,364583.5,4.82,"not owned by a public authority","not permissioned",null,null,"https://publicaccess.fdean.gov.uk/online-applications/applicationDetails.do?keyVal=PQTT0GHI01000&activeTab=summary",null,20,30,null,"Brownfield element is part of a larger site which is the subject of a current application.  This includes an element of residential accommodation.  Scheme as submitted accords with Allocations Plan which identified scope for an element of residential use.","2017-10-31","2023-12-10",null,"Lydney"]
["http://opendatacommu nities.org/id/districtcouncil/forest-of-dean",25,25,"Railway Station Lydney","https://maps.fdean.gov.uk/map/Aurora.svc/run?script=%5cAurora%5cFoDDC+-+SHLAA.AuroraScript%24&nocache=1347652503&resize=always&inspect_query=Brownfield_Land_Registery&inspect_value=Aurora18&scale=1024",201948.02,363411.62,1.04,"owned by a public authority","not permissioned",{"$nulls":4},5,20,null,"Within an area identified for redevelopment including the station itself there is potential for an element of new housing supported by the plan policy.   ","2017-10-31","2023-12-10",null,"Lydney"]
["http://opendatacommu nities.org/id/districtcouncil/forest-of-dean",39,39,"Swan Rd Lydney","https://maps.fdean.gov.uk/map/Aurora.svc/run?script=%5cAurora%5cFoDDC+-+SHLAA.AuroraScript%24&nocache=1347652503&resize=always&inspect_query=Brownfield_Land_Registery&inspect_value=Aurora31&scale=1024",203019.66,363502.39,0.19,"mixed ownership","not permissioned",{"$nulls":4},5,8,null,"small area undeveloped (former gasholder and adjoining premises which could be redeveloped) majority in public ownership. ","2017-10-31","2023-12-10",null,"Lydney"]
["http://opendatacommu nities.org/id/districtcouncil/forest-of-dean",26,26,"St Michaels Close Coach depot Mitcheldean","https://maps.fdean.gov.uk/map/Aurora.svc/run?script=%5cAurora%5cFoDDC+-+SHLAA.AuroraScript%24&nocache=1347652503&resize=always&inspect_query=Brownfield_Land_Registery&inspect_value=Aurora19&scale=1024",218617.52,366273.52,0.43,"not owned by a public authority","not permissioned",null,null,null,"yes",12,12,null,"former coach depot now allocated in plan for about 12 dwellings adjoins conservation area and close to Grade 1 listed church. no permission but application now submitted P1617/23 for 9","2017-10-31","2023-12-10",null,"Mitcheldean"]
["http://opendatacommu nities.org/id/districtcouncil/forest-of-dean",27,27,"Stars Pitch Former George Hotel Mitcheldean","https://maps.fdean.gov.uk/map/Aurora.svc/run?script=%5cAurora%5cFoDDC+-+SHLAA.AuroraScript%24&nocache=1347652503&resize=always&inspect_query=Brownfield_Land_Registery&inspect_value=Aurora20&scale=1024",218550.14,366431.01,0.31,"not owned by a public authority","not permissioned",null,"2015-07-20","https://publicaccess.fdean.gov.uk/online-applications/applicationDetails.do?activeTab=summary&keyVal=NFBWB2HIH4U00","yes",10,12,null,"site has had previous permissions for 31 new units (flats) now lapsed  suitable for a variety of dwellings as allocated in Local Plan.  Former pub now demolished. ","2017-10-31","2023-12-10",null,"Mitcheldean"]
["http://opendatacommu nities.org/id/districtcouncil/forest-of-dean",28,28,"Bradley Court Rd Mitcheldean","https://maps.fdean.gov.uk/map/Aurora.svc/run?script=%5cAurora%5cFoDDC+-+SHLAA.AuroraScript%24&nocache=1347652503&resize=always&inspect_query=Brownfield_Land_Registery&inspect_value=Aurora21&scale=2048",218940.94,366503.34,1.74,"not owned by a public authority","not permissioned",{"$nulls":4},40,50,null,"Site presently within large employment area remains in employment use but is allocated for housing.","2017-10-31","2023-12-10",null,"Mitcheldean"]
["http://opendatacommu nities.org/id/districtcouncil/forest-of-dean",31,31,"Former Victoria Hotel Newnham","https://maps.fdean.gov.uk/map/Aurora.svc/run?script=%5cAurora%5cFoDDC+-+SHLAA.AuroraScript%24&nocache=1347652503&resize=always&inspect_query=Brownfield_Land_Registery&inspect_value=Aurora24&scale=1024",211587.91,368983.68,0.35,"not owned by a public authority","not permissioned",{"$nulls":4},15,20,null,"Listed former hotel and land associated with it.  Capable of being converted and redeveloped (the non listed element) to provide a variety of accommodation. No recent progress.  ","2017-10-31","2023-12-10",null,"Newnham"]
["http://opendatacommu nities.org/id/districtcouncil/forest-of-dean",11,11,"Tramway Road Ruspidge","https://maps.fdean.gov.uk/map/Aurora.svc/run?script=%5cAurora%5cFoDDC+-+SHLAA.AuroraScript%24&nocache=1347652503&resize=always&inspect_query=Brownfield_Land_Registery&inspect_value=Aurora9&scale=1024",211389.24,365016.12,0.86,"not owned by a public authority","not permissioned",null,null,"https://publicaccess.fdean.gov.uk/online-applications/simpleSearchResults.do?action=firstPage","yes",20,30,null,"part former pithead baths and part under used employment site, all considered suitable for redevelopment for a variety of accommodation.  Outline application for 20 dwellings submitted on part of site but withdrawn due to ecology issues. (P0011/18) Still suitable for residential use subject to satisfactory scheme","2017-10-31","2023-12-10",null,"Ruspidge"]
["http://opendatacommu nities.org/id/districtcouncil/forest-of-dean",35,35,"Adj The Laurels Sling","https://maps.fdean.gov.uk/map/Aurora.svc/run?script=%5cAurora%5cFoDDC+-+SHLAA.AuroraScript%24&nocache=1347652503&resize=always&inspect_query=Brownfield_Land_Registery&inspect_value=Aurora27&scale=1024",208174.74,358351.37,0.48,"not owned by a public authority","permissioned",null,null,"https://publicaccess.fdean.gov.uk/online-applications/applicationDetails.do?activeTab=documents&keyVal=QPEIL4HIHPG00",null,9,15,null,"former builders yard and premises suitable for redevelopment now has outline permission for nine units and some commercial use","2017-10-31","2023-12-10",null,"Sling"]
["http://opendatacommu nities.org/id/districtcouncil/forest-of-dean",34,34,"Lydney Rd Whitecroft","https://maps.fdean.gov.uk/map/Aurora.svc/run?script=%5cAurora%5cFoDDC+-+SHLAA.AuroraScript%24&nocache=1347652503&resize=always&inspect_query=Brownfield_Land_Registery&inspect_value=Aurora26&scale=2048",206086.96,362059.51,3.47,"not owned by a public authority","not permissioned",null,null,"https://publicaccess.fdean.gov.uk/online-applications/applicationDetails.do?activeTab=documents&keyVal=PSXX52HIIVX00",null,30,35,null,"part of mixed use allocation to include for housing and employment.  currently an application with resolution to permit uses awaiting decision notice.  P0919/19/OUT","2017-10-31","2023-12-10",null,"Whitecroft"]
[]
[{"$nulls":4},31]